Cogmind - Beta 15 @@@ ROGUE MODE // 2025.09.15 @ 16:19:47 Player: shapeshifter Result: Destroyed by H-55 Commando with Gauss Rifle Performance ------------- Evolutions (2) 1000 Regions Visited (5) 1000 Robots Destroyed (42) 210 Value Destroyed (871) 871 Prototype IDs (23) 460 Alien Tech Used (0) 0 Bonus (300) 300 TOTAL SCORE: 3841 Bonus ------- Aligned with FarCom 300 Cogmind --------- Core Integrity 0/550 Matter 28/300 Energy 100/100 System Corruption 0% Temperature Cool (36) Movement Core (350) Ox6 Location -8/Materials Parts ------- > --- POWER (1) -------- (None) > --- PROPULSION (2) --- (None) > --- UTILITY (5) ------ Large Storage Unit Machine Analyzer Advanced Visual Processing Unit > --- WEAPON (3) ------- (None) > --- INVENTORY (15) --- Improved Heat Sink Large Storage Unit Huge Storage Unit High-capacity Matter Pod (0) Experimental Sensor Array Cloak of Protection PSU Rigger Heavy Particle Cannon Gauss Cannon Gauss Cannon Gauss Cannon Peak State ------------ > --- POWER ------------ Light Nuclear Core > --- PROPULSION ------- Compact Wheel Armored Wheel > --- UTILITY ---------- Improved Heat Sink Large Storage Unit Advanced Visual Processing Unit 0b10 Alert Chip Hacking Suite > --- WEAPON ----------- Gauss Cannon Gauss Cannon Gauss Cannon > --- INVENTORY -------- Compact Wheel Large Storage Unit Huge Storage Unit High-capacity Matter Pod Experimental Sensor Array Cloak of Protection PSU Rigger Heavy Particle Cannon Gauss Cannon Gauss Cannon Gauss Cannon Gauss Cannon Gauss Cannon Grenade Launcher [Rating: 39] Favorites ----------- Power Ion Engine Engine Ion Engine Power Core Light Nuclear Core Propulsion Light Treads Treads Light Treads Wheel Armored Wheel Utility Large Storage Unit Device Seismic Detector Storage Large Storage Unit Processor 0b10 Alert Chip Hackware Hacking Suite Protection Light Armor Plating Weapon Light Assault Rifle Ballistic Gun Light Assault Rifle Ballistic Cannon Gauss Cannon Launcher Grenade Launcher Build | -11 -10 -10 -10 -9 -8 ------- Run | Yrd Mat Min Exi Min Mat Slots Evolved 4 | . . . . . 4 Power . | . . . . . . Propulsion . | . . . . . . Utility 3 | . . . . . 3 Weapon 1 | . . . . . 1 Parts Attached 35 | 7 2 4 . . 22 Power 4 | 1 . 1 . . 2 Engine 3 | 1 . 1 . . 1 Core 1 | . . . . . 1 Reactor . | . . . . . . Propulsion 7 | 2 . 1 . . 4 Treads 3 | 2 . 1 . . . Leg . | . . . . . . Wheel 4 | . . . . . 4 Hover . | . . . . . . Flight . | . . . . . . Utility 9 | 2 2 . . . 5 Device 2 | 1 . . . . 1 Storage 2 | 1 1 . . . . Processor 3 | . . . . . 3 Hackware 1 | . . . . . 1 Protection 1 | . 1 . . . . Artifact . | . . . . . . Weapon 15 | 2 . 2 . . 11 Energy Gun . | . . . . . . Energy Cannon . | . . . . . . Ballistic Gun 5 | 2 . 2 . . 1 Ballistic Cannon 9 | . . . . . 9 Launcher 1 | . . . . . 1 Special Weapon . | . . . . . . Impact Weapon . | . . . . . . Slashing Weapon . | . . . . . . Piercing Weapon . | . . . . . . Special Melee Weapon . | . . . . . . Unidentified Prototypes . | . . . . . . Parts Lost 17 | . . 3 . 1 13 Power 3 | . . 1 . 1 1 Propulsion 5 | . . 1 . . 4 Utility 3 | . . 1 . . 2 Weapon 6 | . . . . . 6 Highest Loss Streak 12 | . . 2 . 1 12 To Critical Strikes . | . . . . . . Average Backups 11 | 2 9 11 14 15 13 Power . | 1 1 . 1 . . Propulsion 1 | 1 2 2 2 2 1 Utility 4 | . 2 4 5 8 6 Weapon 4 | . 3 5 5 5 6 Tool/Special . | . . . . . . Unused Backups 15 | . . . 3 . 12 Power 3 | . . . 3 . . Propulsion . | . . . . . . Utility 6 | . . . . . 6 Weapon 6 | . . . . . 6 Tool/Special . | . . . . . . Average Slot Usage (%) 86 | . 100 84 85 85 79 Engine 12 | . 14 13 14 14 4 Treads 22 | . 28 25 28 28 2 Wheel 2 | . . . . . 13 Device 1 | . 7 . . . . Storage 13 | . 14 14 14 14 9 Processor 3 | . . . . . 19 Protection 1 | . 6 1 . . . Ballistic Gun 23 | . 28 28 28 28 3 Ballistic Cannon 3 | . . . . . 18 Peak Build Rating 39 | 7 8 8 10 10 39 Average Rating 11 | 4 7 7 9 9 28 On Entrance 7 | . 7 8 8 10 9 Naked Turns . | . . . . . . Heaviest Build 47 | 14 31 31 27 27 47 Greatest Support 40 | 40 40 40 40 40 40 Greatest Overweight (x) 2 | . . 1 . . 2 Average Overweight (x) . | . . . . . . Largest Inventory Capacity 15 | 8 15 15 15 15 15 Average Capacity 14 | 7 12 15 15 15 15 Most Carried 15 | 5 12 14 15 15 15 Average Carried 11 | 3 9 11 14 15 13 Final Capacity 15 | 8 15 15 15 15 15 Final Carried 15 | 3 12 13 15 15 11 Class Distribution -------------------- 85% | Mutant 14% | Skirmisher Dominant Class ---------------- Mutant | -10/Materials Mutant | -10/Mines Mutant | -10/Exiles Mutant | -9/Mines Skirmisher | -8/Materials Resources | -11 -10 -10 -10 -9 -8 ----------- Run | Yrd Mat Min Exi Min Mat Matter Collected 1251 | 244 374 165 . 16 452 Remotely . | . . . . . . Salvage Created 1038 | 25 486 266 . 58 203 Parts 86 | 4 35 27 . 10 10 Haulers Intercepted 1 | . 1 . . . . Recyclers Shooed 4 | . 2 1 . . 1 Parts Field Recycled . | . . . . . . Retrieved Matter . | . . . . . . Parts Self-Destructed . | . . . . . . Prevented . | . . . . . . Kills | -11 -10 -10 -10 -9 -8 ------- Run | Yrd Mat Min Exi Min Mat Combat Hostiles Destroyed 26 | . 5 10 . 4 7 Guns 19 | . 5 10 . 4 . Cannons 7 | . . . . . 7 Classes Destroyed 10 | 1 8 . . . 1 Worker 3 | . 3 . . . . Builder 2 | . 1 . . . 1 Tunneler 2 | 1 1 . . . . Hauler 1 | . 1 . . . . Recycler 2 | . 2 . . . . Operator 1 | . 1 . . . . Watcher 5 | . 3 . . . 2 Swarmer 13 | . 3 6 . 4 . Grunt 10 | . 2 4 . . 4 Sentry 3 | . . . . . 3 Best Kill Streak 5 | 1 5 4 . 4 4 Combat Bots Only 4 | . 3 3 . 4 3 Max Kills in Single Turn 2 | 1 1 2 . 2 1 Gunslinging 1 | . . 1 . 1 . Exploded . | . . . . . . Melee . | . . . . . . Uniques/NPCs Destroyed . | . . . . . . Combat | -11 -10 -10 -10 -9 -8 -------- Run | Yrd Mat Min Exi Min Mat Hostile Shots Fired 278 | . 16 54 . 33 175 Missed 61 | . 2 9 . 11 39 Hits 217 | . 14 45 . 22 136 Projectile 217 | . 14 45 . 22 136 Critical Strikes 10 | . 1 3 . . 6 Damage Taken 2969 | . 124 529 . 190 2126 Core 680 | . . 60 . 52 568 Absorbed by Shields . | . . . . . . Core Remaining (%) 77 | 100 . . . 55 . Volleys Fired 120 | 3 38 26 . 8 45 Largest 3 | 2 2 2 . 2 3 Hottest 120 | 40 40 40 . 40 120 Shots Fired 252 | 6 76 52 . 16 102 Gun 154 | 6 76 52 . 16 4 Cannon 98 | . . . . . 98 Launcher . | . . . . . . Special . | . . . . . . Kinetic 252 | 6 76 52 . 16 102 Thermal . | . . . . . . Explosive . | . . . . . . Electromagnetic . | . . . . . . Robot Hit Streak 10 | 2 8 9 . 10 8 Robot Miss Streak 6 | 1 5 2 . 2 6 Penetration Max . | . . . . . . Secondary Targets 6 | . 1 3 . 2 . Max Gunslinging Chain 1 | . 1 1 . 1 . Shots Hit Robots 150 | 3 47 34 . 9 57 Core Hits 70 | 1 26 18 . 6 19 Critical Kills . | . . . . . . Critical Parts Destroyed . | . . . . . . Critical Strikes 5 | . . . . . 5 Blast 5 | . . . . . 5 Melee Attacks . | . . . . . . Impact . | . . . . . . Slashing . | . . . . . . Piercing . | . . . . . . Sneak Attacks . | . . . . . . Combat Hostiles . | . . . . . . Follow-up Attacks . | . . . . . . Damage Inflicted 2520 | 41 509 360 . 74 1536 Guns 1003 | 41 509 360 . 74 19 Cannons 1479 | . . . . . 1479 Explosions . | . . . . . . Melee . | . . . . . . Ramming 38 | . . . . . 38 Kinetic 2482 | 41 509 360 . 74 1498 Thermal . | . . . . . . Explosive . | . . . . . . Electromagnetic . | . . . . . . Impact . | . . . . . . Slashing . | . . . . . . Piercing . | . . . . . . Highest Corruption . | . . . . . . Average Corruption . | . . . . . . Corruption Purged . | . . . . . . Corruption Blocked . | . . . . . . Overload Shots . | . . . . . . Overflow Damage 20 | . . . . . 20 Projectiles 20 | . . . . . 20 Explosions . | . . . . . . Melee . | . . . . . . Knockbacks 14 | . . . . . 14 Impact . | . . . . . . Kinetic 14 | . . . . . 14 Secondary . | . . . . . . Self-Inflicted Damage 15 | . . . . . 15 Shots . | . . . . . . Rammed 11 | . . . . . 11 Targets Rammed 11 | . . . . . 11 Kicked . | . . . . . . Crushed . | . . . . . . Highest Temperature 349 | . 12 40 . . 349 Average Temperature 55 | . 5 11 . . 90 Received Heat Transfer 1437 | . 18 285 . . 1134 Effects 1 | . . . . . 1 Energy Bleed 1 | . . . . . 1 Siege Activations . | . . . . . . Martial Activations . | . . . . . . Shielding Activations . | . . . . . . Robots Disrupted . | . . . . . . Combat Hostiles . | . . . . . . Robots Corrupted . | . . . . . . Combat Hostiles . | . . . . . . Parts Fried . | . . . . . . Impact Corruptions . | . . . . . . Robots Melted . | . . . . . . Combat Hostiles . | . . . . . . Parts Melted . | . . . . . . Heat Transferred . | . . . . . . Parts Sabotaged . | . . . . . . Parts Stolen . | . . . . . . Parts Stripped . | . . . . . . Power Chain Reactions . | . . . . . . Alert | -11 -10 -10 -10 -9 -8 ------- Run | Yrd Mat Min Exi Min Mat Maximum Alert Level . | . . . . . . Low Security (%) 100 | 100 100 100 . 100 100 Level 1 . | . . . . . . Level 2 . | . . . . . . Level 3 . | . . . . . . Level 4 . | . . . . . . Level 5 . | . . . . . . High Security . | . . . . . . Max Security . | . . . . . . Peak Influence 90 | 5 70 88 . 90 85 Initial 23 | . . 18 . . 23 Average 22 | . 23 19 . 63 28 Influence Increases 792 | 5 206 245 . 90 246 Destroy 0b10 Robot/C 492 | . 100 200 . 80 112 Destroy 0b10 Robot/NC 77 | 5 60 . . . 12 Destroy Leader 124 | . 38 40 . 10 36 Successful Hack 23 | . 8 5 . . 10 Disable Machine 36 | . . . . . 36 Destroy Structure 40 | . . . . . 40 Influence Decreases 792 | 5 158 293 . 30 306 Entered New Map 67 | . . 30 . . 37 Time Decay 605 | 5 158 233 . 20 189 Lost Part 120 | . . 30 . 10 80 Squads Dispatched 6 | . 3 . . . 3 Investigation 2 | . 1 . . . 1 Extermination . | . . . . . . Reinforcement 4 | . 2 . . . 2 Assault . | . . . . . . Garrison . | . . . . . . Intercept . | . . . . . . Searches Triggered . | . . . . . . Construction Impeded 1 | . . . . . 1 Haulers Reinforced . | . . . . . . Active Scanning Responses . | . . . . . . Cargo Convoy Interrupts . | . . . . . . Stealth | -11 -10 -10 -10 -9 -8 --------- Run | Yrd Mat Min Exi Min Mat Distress Signals 4 | . 1 . . . 3 Communications Jammed . | . . . . . . Distress Signals . | . . . . . . Times Spotted 48 | . 10 9 . 8 21 Peak Tracking Total 8 | . 4 3 . 4 8 Tactical Retreats . | . . . . . . Traps | -11 -10 -10 -10 -9 -8 ------- Run | Yrd Mat Min Exi Min Mat Traps Triggered 2 | . 1 . . . 1 Indirectly . | . . . . . . Trap Hack Attempts . | . . . . . . Triggered . | . . . . . . Disarmed . | . . . . . . Reprogrammed . | . . . . . . Reused . | . . . . . . Traps Extracted . | . . . . . . Installed . | . . . . . . Triggered . | . . . . . . Machines | -11 -10 -10 -10 -9 -8 ---------- Run | Yrd Mat Min Exi Min Mat Machines Disabled 3 | . . . . . 3 Max in Single Turn 1 | . . . . . 1 Machines Repaired . | . . . . . . Machines Dismantled . | . . . . . . Machines Sabotaged . | . . . . . . Overloaded Fab Kills . | . . . . . . Hacking | -11 -10 -10 -10 -9 -8 --------- Run | Yrd Mat Min Exi Min Mat Machines Accessed 5 | . 1 1 2 . 1 Terminals 3 | . 1 1 . . 1 Fabricators . | . . . . . . Repair Stations . | . . . . . . Recycling Units . | . . . . . . Scanalyzers . | . . . . . . Garrison Access . | . . . . . . Total Hacks 13 | . 5 3 2 . 3 Successful 5 | . 1 1 2 . 1 Failed 8 | . 4 2 . . 2 Catastrophic 2 | . . 1 . . 1 Database Lockouts . | . . . . . . Manual 11 | . 5 3 1 . 2 Terminals 11 | . 5 3 . . 3 Fabricators . | . . . . . . Repair Stations . | . . . . . . Recycling Units . | . . . . . . Scanalyzers . | . . . . . . Garrison Access . | . . . . . . Terminal Hacks 5 | . 1 1 2 . 1 Record 1 | . . . 1 . . Branch Access Points 1 | . 1 . . . . Zone Layout 2 | . . 1 . . 1 Proto ID Catalog 1 | . . . 1 . . Fabricator Hacks . | . . . . . . Repair Station Hacks . | . . . . . . Recycling Unit Hacks . | . . . . . . Scanalyzer . | . . . . . . Garrison Access Hacks . | . . . . . . Unauthorized Hacks . | . . . . . . Terminals . | . . . . . . Fabricators . | . . . . . . Repair Stations . | . . . . . . Recycling Units . | . . . . . . Scanalyzers . | . . . . . . Garrison Access . | . . . . . . Data Cores Recovered . | . . . . . . Used . | . . . . . . Hacking Detections 3 | . 1 1 . . 1 Full Trace Events 1 | . . . . . 1 Feedback Events 1 | . . . . . 1 Hackware Fried 1 | . . . . . 1 Feedback Blocked . | . . . . . . Robot Schematics Acquired . | . . . . . . Robots Built . | . . . . . . Authchips . | . . . . . . Time . | . . . . . . Total Robot Build Rating . | . . . . . . Part Schematics Acquired . | . . . . . . Parts Built . | . . . . . . Authchips . | . . . . . . Time . | . . . . . . Total Part Build Rating . | . . . . . . Parts Repaired . | . . . . . . Time . | . . . . . . Parts Recycled . | . . . . . . Recycled Matter . | . . . . . . Retrieved Matter . | . . . . . . Retrieved Components . | . . . . . . Parts Scanalyzed . | . . . . . . Part Schematics Acquired . | . . . . . . Parts Damaged . | . . . . . . Bothacking | -11 -10 -10 -10 -9 -8 ------------ Run | Yrd Mat Min Exi Min Mat Used RIF Installer . | . . . . . . Robots Hacked . | . . . . . . Non-combat . | . . . . . . Combat . | . . . . . . Robot Hacks Applied . | . . . . . . Relay Couplers Released . | . . . . . . Fabnet Peak Effective % . | . . . . . . Robots Rewired . | . . . . . . Allies Hacked . | . . . . . . Hacks Repelled . | . . . . . . Allies | -11 -10 -10 -10 -9 -8 -------- Run | Yrd Mat Min Exi Min Mat Total Allies . | . . . . . . Largest Group . | . . . . . . Highest-Rated Group . | . . . . . . Highest-Rated Ally . | . . . . . . Total Orders . | . . . . . . Ally Attacks . | . . . . . . Total Damage . | . . . . . . Kills . | . . . . . . Allies Corrupted . | . . . . . . Allies Melted . | . . . . . . Intel | -11 -10 -10 -10 -9 -8 ------- Run | Yrd Mat Min Exi Min Mat Active Infowar (turns) 714 | 13 282 . . . 419 Optics 392 | . . . . . 392 Seismic 295 | 13 282 . . . . Machine Analysis 178 | . . . . . 178 Robot Analysis Total . | . . . . . . Derelict Logs Recovered 2 | . . 2 . . . Drone Launches . | . . . . . . Drone Recoveries . | . . . . . . Exploration | -11 -10 -10 -10 -9 -8 ------------- Run | Yrd Mat Min Exi Min Mat Turns Passed 2852 | 115 525 1153 530 50 479 Spaces Moved 1475 | 67 223 610 327 19 229 Core 19 | 19 . . . . . Treads 1247 | 48 223 610 327 19 20 Legs . | . . . . . . Wheels 209 | . . . . . 209 Hover . | . . . . . . Flight . | . . . . . . Fastest Speed 50 | 50 160 160 160 160 85 Average Speed 154 | 128 160 168 160 160 113 Slowest Speed 240 | 160 160 240 160 160 160 Overloaded Moves . | . . . . . . Propulsion Burnouts . | . . . . . . Robots Hopped . | . . . . . . Potential Cave-ins . | . . . . . . Cave-ins Triggered . | . . . . . . Exploration Rate (%) 41 | 5 43 98 68 7 29 Regions Visited 5 Branch Regions 3 Pre-discovered Areas 3 | . . 2 1 . . Known Exits Taken 1 | . 1 . . . . Unknown Exits Taken 4 | 1 . 1 1 1 . Scrap Searched 1 | . . 1 . . . Spaces Dug . | . . . . . . Terrain Destroyed 47 | . . . . . 47 Melee . | . . . . . . Projectile 47 | . . . . . 47 AOE . | . . . . . . Terrain Rammed . | . . . . . . Walls Destroyed . | . . . . . . Machines Disabled . | . . . . . . Actions | -11 -10 -10 -10 -9 -8 --------- Run | Yrd Mat Min Exi Min Mat Total 1825 | 90 324 690 336 26 359 Wait 116 | 4 50 46 . . 16 Move 1470 | 66 222 609 326 18 229 Hop . | . . . . . . Pick Up 49 | 10 10 4 6 . 19 Fast Attach 5 | . . . . . 5 Attach 26 | 7 . 2 . . 17 Detach . | . . . . . . Swap 7 | . 2 2 . . 3 Drop 21 | . 2 1 4 . 14 Fire 120 | 3 38 26 . 8 45 Melee . | . . . . . . Ram 11 | . . . . . 11 Kick . | . . . . . . Crush . | . . . . . . Escape Stasis . | . . . . . . Rewire . | . . . . . . Trap . | . . . . . . Miscellaneous . | . . . . . . Route ------- -11/Scrapyard -10/Materials (discovered 3 exits: [*Mat] / *Min / [*Sub]) -10/Mines (discovered 4 exits: [*Mat x2] / *Exi / [*Sub]) -10/Exiles -9/Mines -8/Materials (discovered 1 exit: *Sto) History --------- Turn | Location | Event 51 | -11/Scrapyard | Discovered new exit (range 12) 116 | -11/Scrapyard | Entered Materials 315 | -10/Materials | Build established: Mutant 404 | -10/Materials | Discovered new exit (range 6) 503 | -10/Materials | Identified exit to Mines 592 | -10/Materials | Discovered new exit (range 8) 641 | -10/Materials | Entered Mines 695 | -10/Mines | Discovered new exit (range 5) 1409 | -10/Mines | Found a damaged Exp. Sensor Array with a note attached 1412 | -10/Mines | Found Prototype Device 1533 | -10/Mines | Learned location of Storage (-8) 1543 | -10/Mines | Discovered new exit (range 7) 1685 | -10/Mines | Discovered new exit (range 14) 1787 | -10/Mines | Deemed a non-threat by the Exiles lab entrance 1787 | -10/Mines | Discovered new exit (range 5) 1794 | -10/Mines | Entered Exiles 1843 | -10/Exiles | Met 8R-AWN 1868 | -10/Exiles | Met EX-HEX 1948 | -10/Exiles | Met EX-DEC 1974 | -10/Exiles | Learned location of Zion (-6) 2083 | -10/Exiles | Met EX-BIN 2105 | -10/Exiles | Aligned with FarCom system 2107 | -10/Exiles | Given EX-Vault access code 2144 | -10/Exiles | Opened EX-Vault 2156 | -10/Exiles | Found 0b10 Alert Chip 2168 | -10/Exiles | Found Cloak of Protection 2173 | -10/Exiles | Found PSU Rigger 2207 | -10/Exiles | Warned to stay clear of 0b10 Research branches 2308 | -10/Exiles | Discovered new exit (range 10) 2324 | -10/Exiles | Stole three prototypes: 0b10 Alert Chip, Cloak of Protection, PSU Rigger 2324 | -10/Exiles | Entered Mines 2366 | -9/Mines | Discovered new exit (range 7) 2374 | -9/Mines | Entered Materials 2374 | -8/Materials | Evolved 4 slots: Utility x3, Weapon x1 2375 | -8/Materials | Identified exit to Storage 2693 | -8/Materials | Hacking Suite fried by hacking feedback 2696 | -8/Materials | Build established: Skirmisher 2840 | -8/Materials | Core integrity fell below 50% 2850 | -8/Materials | Core integrity fell below 20% 2853 | -8/Materials | Destroyed by H-55 Commando with Gauss Rifle Last Messages --------------- 02831_ R-06 Scavenger collects Visual Processing Unit. 02832_ K-01 Serf collects debris. 02833_ Slammed into R-06 Scavenger. 02834_ Penetrated by Slug. 02835_ K-01 Serf collects debris. 02837_ Critical hit (Burn: +37). 02838_ Penetrated by Slug. 02840_ R-06 Scavenger collects Aluminum Leg. 02840_ Slammed into R-06 Scavenger. 02842_ K-01 Serf collects debris. 02843_ Grenade Launcher destroyed. 02843_ Gauss Cannon destroyed. 02843_ 0b10 Alert Chip destroyed. 02844_ Penetrated by Slug. 02845_ Gauss Cannon destroyed. 02846_ K-01 Serf cleans the Matter Filter. 02847_ Penetrated by Slug. 02849_ Critical hit (Burn: +37). 02850_ K-01 Serf collects debris. 02853_ Penetrated by Slug. Map ----- +----------------------------------------------------+ | ?????????# """ !## ??+ ???????????????? | | ?????????# = ##""" ??# ???????????????? | | ?????????# ]"#""" ??# %???????????????? | | ?????????# %%##""" ??# ""??????????????? | | ?????????# ## ??# ????????????????? | | ???????#########+#""#""" ??# ????????????????? | | ?####### # "##""" ??? ????????????????? | | ?# # /# ###""" ??????????????????????? | | ?# # # #?# ??????????????????????? | | ?# # " " + #########??????????????????????? | | ?# # "T" # ## #???????????????????? | | ?# # """ # ## """"""" #???????????????????? | | ?# ######## ## """"""" #???????????????????? | | ?# # """ # g ## """"""" #???????????????????? | | ?# # """ # ## """"""" #???????????????????? | | ?# # """ # ##k""""""" #???????????????????? | | ## # # g ## ????????????????????? | | ## # # ## ??????????????????????? | | ## # g #g ####;#;###?????????????????????? | | ####+####+#+### #### #?????????????????????? | | # % ##????????????????????? | | + ##??????????Y?????????? | | # g %g ###???????????????????? | | ### ############### g !# #???????????????????? | | #?# # #?## ####???????????????????? | | #?# + #??# @###????????????????????? | | ??????????????????????# ##?????????????????????? | | ??????????????????????# ##?????????????????????? | | ??????????????????????# g ##?????????????????????? | | ??????????????????????#h g##???????"T"???????????? | | ??????????????????????# %##?????????????????????? | | ?????????????????????# % %#?????????????????????? | | ??????????????????? % ????????????????????? | | ???????????????? % ???????????????????? | | ?????????????? ??????????????????? | | ???????????# ####### ### ????????????????? | | ???????????# ????????###+###?? #???????????????? | | ????????????????????? ??????#+#???????????????? | | ?????????????????????/ ????????????????????????? | | ????????????????????? ????????????????????????? | | ????????????????????? ????????????????????????? | | ???????????????????? ????????????????????????? | | ???????????????????? ????????????????????????? | | ???????????????????? ????????????????????????? | | ???????????????????# ????????????????????????? | | ???????????????????######????????????????????????? | | ?????????????????????????????????????????????????? | | ?????????????????????????????????????????????????? | | ?????????????????????????????????????????????????? | | ???????????????????"""?"""???????????????????????? | +----------------------------------------------------+ Best States ------------- Heat Dissipation 45 Energy Generation 14 Energy Capacity 250 Matter Stores 300 Matter Capacity 300 Sight Range 20 Terrain Scan Density 10 Armor Coverage 150 Evasion (%) 50 Recoil Reduction 2 Offensive Hacking 10 Item Schematics ----------------- None Robot Schematics ------------------ None Fabricated ------------ Nothing Repaired ---------- Nothing Alien Tech Used ----------------- None Achievements -------------- None Challenges ------------ None Game ------ Seed SingularityMissileTreads Manual? 0 Play Time 00:15:12 Cumulative 289.6 hours Start 2025.09.15 @ 16:06:26 End 2025.09.15 @ 16:19:47 Sessions 1 Manual Loads 0 Difficulty Rogue Special Mode None Game No. 413 Rogue 413 Adventurer 0 Explorer 0 Win Type - Total 8 Types 5/0/1/2/0/0/0/0/0/0 Lore% 84 Gallery% 80 Achievement% 63 Wizard Run 0 Options --------- Layout 0 ASCII 0 Keyboard 0 Movement Mouse Keybinds 0 Fullscreen 1 Font 24/Smallcaps Map View 76x50 Zoom Use 0% Tactical HUD 1 Map Filters NONE Filters NONE Steam 1 RUN: f421c95c-1a09-48df-80a6-b754ffc5b657